[Event "*** Titled Tuesday 3|2 Blitz"]
[Site "Chess.com"]
[Date "2016.05.03"]
[Round "6"]
[White "Kacparov"]
[Black "Zurability"]
[Result "1-0"]
[WhiteElo "2621"]
[BlackElo "2418"]
[TimeControl "180+2"]
[EndTime "12:18:29 PDT"]
[Termination "Kacparov won by resignation"]

1. e4 {[%clk 0:03:01.9]} 1... d6 {[%clk 0:03:00.2]} 2. d4 {[%clk 0:03:02.7]}
2... Nf6 {[%clk 0:03:01]} 3. Nc3 {[%clk 0:03:03.9]} 3... e5 {[%clk 0:03:02.2]}
4. Nf3 {[%clk 0:03:04.6]} 4... Nbd7 {[%clk 0:03:03.4]} 5. Bc4 {[%clk 0:03:05.7]}
5... Be7 {[%clk 0:03:04.8]} 6. O-O {[%clk 0:03:06.9]} 6... O-O {[%clk
0:03:06.5]} 7. Re1 {[%clk 0:03:05.3]} 7... c6 {[%clk 0:03:08.1]} 8. a4 {[%clk
0:03:06.1]} 8... a5 {[%clk 0:03:09.7]} 9. h3 {[%clk 0:03:05.5]} 9... Nb6 {[%clk
0:03:11.2]} 10. Ba2 {[%clk 0:03:05.8]} 10... Nfd7 {[%clk 0:03:12.4]} 11. Be3
{[%clk 0:03:04]} 11... exd4 {[%clk 0:03:13.7]} 12. Nxd4 {[%clk 0:03:04.9]} 12...
Nc5 {[%clk 0:03:15.2]} 13. Nf3 {[%clk 0:02:25.1]} 13... Nbxa4 {[%clk 0:03:03.9]}
14. Nxa4 {[%clk 0:02:25.8]} 14... Nxa4 {[%clk 0:03:05.8]} 15. Bxf7+ {[%clk
0:02:26.6]} 15... Rxf7 {[%clk 0:03:07.7]} 16. Rxa4 {[%clk 0:02:28]} 16... Bd7
{[%clk 0:03:02]} 17. Ra1 {[%clk 0:02:28.1]} 17... Qf8 {[%clk 0:02:57.8]} 18. e5
{[%clk 0:02:08.3]} 18... Rxf3 {[%clk 0:02:28.6]} 19. Qxf3 {[%clk 0:02:02.9]}
19... Qxf3 {[%clk 0:02:29.4]} 20. gxf3 {[%clk 0:02:04.8]} 20... d5 {[%clk
0:02:30.8]} 21. Kg2 {[%clk 0:02:03]} 21... Bf5 {[%clk 0:02:24.8]} 22. c3 {[%clk
0:02:04.2]} 22... a4 {[%clk 0:02:22.3]} 23. Bb6 {[%clk 0:02:00.6]} 23... Ra6
{[%clk 0:02:22.2]} 24. Bc7 {[%clk 0:02:00.7]} 24... Kf7 {[%clk 0:02:19.9]} 25.
Bd6 {[%clk 0:01:56]} 25... Bg5 {[%clk 0:02:20.7]} 26. Kg3 {[%clk 0:01:47.7]}
26... Ke6 {[%clk 0:02:17]} 27. f4 {[%clk 0:01:48.3]} 27... Bd8 {[%clk
0:02:14.9]} 28. h4 {[%clk 0:01:48.2]} 28... h5 {[%clk 0:02:00]} 29. Ra3 {[%clk
0:01:48.5]} 29... Bc2 {[%clk 0:01:56.6]} 30. Rc1 {[%clk 0:01:46.4]} 30... Bb3
{[%clk 0:01:55.9]} 31. Raa1 {[%clk 0:01:45.2]} 31... g6 {[%clk 0:01:50.9]} 32.
Kh3 {[%clk 0:01:09.9]} 32... Bb6 {[%clk 0:01:40.8]} 33. Kg3 {[%clk 0:01:10.1]}
33... Ra8 {[%clk 0:01:38.7]} 34. Kf3 {[%clk 0:01:02.8]} 34... Bd8 {[%clk
0:01:34.8]} 35. Kg3 {[%clk 0:01:00.7]} 35... b6 {[%clk 0:01:35.9]} 36. Rg1
{[%clk 0:00:54.9]} 36... c5 {[%clk 0:01:26.1]} 37. Rac1 {[%clk 0:00:55.8]} 37...
Bc4 {[%clk 0:01:12.9]} 38. Kh3 {[%clk 0:00:44]} 38... Bd3 {[%clk 0:01:12.8]} 39.
Rgd1 {[%clk 0:00:40.8]} 39... Bf5+ {[%clk 0:01:13.6]} 40. Kg3 {[%clk 0:00:42.1]}
40... a3 {[%clk 0:01:12.1]} 41. bxa3 {[%clk 0:00:33.4]} 41... Rxa3 {[%clk
0:01:14]} 42. f3 {[%clk 0:00:34.5]} 42... Rb3 {[%clk 0:00:46.3]} 43. Rd2 {[%clk
0:00:28.1]} 43... Ra3 {[%clk 0:00:34.7]} 44. Bf8 {[%clk 0:00:28.1]} 44... Bc7
{[%clk 0:00:33.2]} 45. Bd6 {[%clk 0:00:20.1]} 45... Bxd6 {[%clk 0:00:31]} 46.
exd6 {[%clk 0:00:22]} 46... Kxd6 {[%clk 0:00:32.4]} 47. Re2 {[%clk 0:00:23.1]}
47... d4 {[%clk 0:00:29.8]} 48. cxd4 {[%clk 0:00:23.8]} 48... cxd4 {[%clk
0:00:31.7]} 49. Re8 {[%clk 0:00:24.2]} 49... d3 {[%clk 0:00:30.8]} 50. Rd8+
{[%clk 0:00:25.3]} 50... Ke7 {[%clk 0:00:31.5]} 51. Rd4 {[%clk 0:00:24.6]} 51...
Rb3 {[%clk 0:00:33]} 52. Rc6 {[%clk 0:00:24.4]} 52... b5 {[%clk 0:00:33.8]} 53.
Kf2 {[%clk 0:00:25]} 53... Rb2+ {[%clk 0:00:34.4]} 54. Ke1 {[%clk 0:00:25.2]}
54... Re2+ {[%clk 0:00:35.4]} 55. Kd1 {[%clk 0:00:26.4]} 55... Re3 {[%clk
0:00:36.6]} 56. Rc7+ {[%clk 0:00:26.8]} 56... Ke8 {[%clk 0:00:37.2]} 57. Rd6
{[%clk 0:00:22.9]} 57... Re7 {[%clk 0:00:30.1]} 58. Rxe7+ {[%clk 0:00:21.3]}
58... Kxe7 {[%clk 0:00:32]} 59. Rd5 {[%clk 0:00:21.6]} 59... b4 {[%clk
0:00:32.1]} 60. Rb5 {[%clk 0:00:21.9]} 60... Kf7 {[%clk 0:00:31.5]} 61. Rxb4
{[%clk 0:00:22.9]} 61... Ke6 {[%clk 0:00:32.8]} 62. Kd2 {[%clk 0:00:24.3]} 62...
Kd5 {[%clk 0:00:34.2]} 63. Ke3 {[%clk 0:00:24.8]} 63... Kc5 {[%clk 0:00:35.6]}
64. Rd4 {[%clk 0:00:25.6]} 64... Kc6 {[%clk 0:00:36.8]} 65. Rd8 {[%clk
0:00:26.5]} 65... Kc7 {[%clk 0:00:38.2]} 66. Rf8 {[%clk 0:00:26.4]} 66... Kd6
{[%clk 0:00:39.2]} 67. Rf7 {[%clk 0:00:25.7]} 67... Kc6 {[%clk 0:00:40.1]} 68.
Ra7 {[%clk 0:00:24.3]} 68... Kd6 {[%clk 0:00:41.3]} 69. Ra4 {[%clk 0:00:25.1]}
69... Ke6 {[%clk 0:00:42.5]} 70. Rd4 {[%clk 0:00:26]} 70... Ke7 {[%clk
0:00:43.4]} 71. Kd2 {[%clk 0:00:27.2]} 71... Ke6 {[%clk 0:00:44.7]} 72. Kc3
{[%clk 0:00:28.6]} 72... Ke7 {[%clk 0:00:46.2]} 73. Kc4 {[%clk 0:00:30.1]} 73...
Ke6 {[%clk 0:00:47.7]} 74. Kc5 {[%clk 0:00:30.8]} 74... Ke7 {[%clk 0:00:49.2]}
75. Kd5 {[%clk 0:00:32.1]} 75... Kf6 {[%clk 0:00:50.3]} 76. Kd6 {[%clk
0:00:33.3]} 76... Kf7 {[%clk 0:00:48.3]} 77. Ke5 {[%clk 0:00:34.5]} 77... Ke7
{[%clk 0:00:49.8]} 78. Rd5 {[%clk 0:00:34.6]} 78... Kf7 {[%clk 0:00:50.3]} 79.
Kd6 {[%clk 0:00:35.3]} 79... Kf6 {[%clk 0:00:51.2]} 80. Rd4 {[%clk 0:00:31.9]}
80... Kf7 {[%clk 0:00:52.1]} 81. Ke5 {[%clk 0:00:26.8]} 81... Ke7 {[%clk
0:00:53]} 82. Rd5 {[%clk 0:00:27.1]} 82... Kf7 {[%clk 0:00:53.4]} 83. Kd4 {[%clk
0:00:22.6]} 83... Ke6 {[%clk 0:00:53.9]} 84. Re5+ {[%clk 0:00:21.8]} 84... Kd6
{[%clk 0:00:55.3]} 85. Ke3 {[%clk 0:00:20.2]} 85... Kc6 {[%clk 0:00:55.4]} 86.
Kd2 {[%clk 0:00:17.9]} 86... Kd6 {[%clk 0:00:56.4]} 87. Re4 {[%clk 0:00:16.4]}
1-0

[Event "*** Titled Tuesday 3|2 Blitz"]
[Site "Chess.com"]
[Date "2016.05.03"]
[Round "6"]
[White "ZivkovicN"]
[Black "dretch"]
[Result "0-1"]
[WhiteElo "2381"]
[BlackElo "2578"]
[TimeControl "180+2"]
[EndTime "12:18:30 PDT"]
[Termination "dretch won on time"]

1. e4 {[%clk 0:03:01.9]} 1... e6 {[%clk 0:03:01.1]} 2. d3 {[%clk 0:03:01.2]}
2... d5 {[%clk 0:03:02.4]} 3. Nd2 {[%clk 0:03:01.9]} 3... c5 {[%clk 0:03:03.2]}
4. Ngf3 {[%clk 0:03:02.8]} 4... Nc6 {[%clk 0:03:04.3]} 5. Be2 {[%clk 0:03:03.3]}
5... Bd6 {[%clk 0:03:05.3]} 6. O-O {[%clk 0:03:03.9]} 6... Nge7 {[%clk 0:03:05]}
7. c3 {[%clk 0:03:04.7]} 7... O-O {[%clk 0:03:05.5]} 8. Re1 {[%clk 0:03:05.6]}
8... Bc7 {[%clk 0:03:00.4]} 9. a3 {[%clk 0:03:06]} 9... a5 {[%clk 0:02:59.1]}
10. a4 {[%clk 0:03:07]} 10... d4 {[%clk 0:02:59.5]} 11. Nc4 {[%clk 0:03:06.7]}
11... e5 {[%clk 0:02:56.2]} 12. Bf1 {[%clk 0:03:07.3]} 12... f6 {[%clk
0:02:53.9]} 13. Bd2 {[%clk 0:03:00.7]} 13... Be6 {[%clk 0:02:54.1]} 14. Qb3
{[%clk 0:02:59.3]} 14... b6 {[%clk 0:02:42.8]} 15. Rac1 {[%clk 0:02:55.8]} 15...
Kh8 {[%clk 0:02:43.4]} 16. Qb5 {[%clk 0:02:53.1]} 16... Na7 {[%clk 0:02:38.1]}
17. Qb3 {[%clk 0:02:53.8]} 17... Rb8 {[%clk 0:02:37]} 18. Qd1 {[%clk 0:02:47.3]}
18... Nec6 {[%clk 0:02:28.7]} 19. Qc2 {[%clk 0:02:38.2]} 19... Qd7 {[%clk
0:02:25.5]} 20. Ra1 {[%clk 0:02:39]} 20... Rfd8 {[%clk 0:02:23.7]} 21. h3 {[%clk
0:02:40.2]} 21... b5 {[%clk 0:02:19.4]} 22. axb5 {[%clk 0:02:40.9]} 22... Nxb5
{[%clk 0:02:21.3]} 23. Bc1 {[%clk 0:02:35.6]} 23... Nd6 {[%clk 0:02:20]} 24.
Nfd2 {[%clk 0:02:34.6]} 24... Nxc4 {[%clk 0:02:08.9]} 25. Nxc4 {[%clk
0:02:29.7]} 25... f5 {[%clk 0:02:00.8]} 26. Bg5 {[%clk 0:02:13.8]} 26... Rf8
{[%clk 0:01:59]} 27. exf5 {[%clk 0:02:02.5]} 27... Bxf5 {[%clk 0:01:54.9]} 28.
Nd2 {[%clk 0:01:59.8]} 28... Bd8 {[%clk 0:01:02.5]} 29. Bxd8 {[%clk 0:01:41.9]}
29... Qxd8 {[%clk 0:01:04.4]} 30. Nc4 {[%clk 0:01:41.1]} 30... Re8 {[%clk
0:00:58.7]} 31. Qa4 {[%clk 0:01:40.5]} 31... Qd5 {[%clk 0:00:29.6]} 32. Nxa5
{[%clk 0:01:25]} 32... Nxa5 {[%clk 0:00:28]} 33. Qxa5 {[%clk 0:01:24.1]} 33...
Rxb2 {[%clk 0:00:28.6]} 34. cxd4 {[%clk 0:01:21.1]} 34... Qxd4 {[%clk
0:00:27.7]} 35. Re2 {[%clk 0:01:03.3]} 35... Rbb8 {[%clk 0:00:20.6]} 36. Re3
{[%clk 0:00:56.4]} 36... h6 {[%clk 0:00:19.5]} 37. Rae1 {[%clk 0:00:56.5]} 37...
Rb2 {[%clk 0:00:14.4]} 38. Qc7 {[%clk 0:00:51.8]} 38... e4 {[%clk 0:00:12.8]}
39. Qf7 {[%clk 0:00:48.6]} 39... Re5 {[%clk 0:00:08.8]} 40. dxe4 {[%clk
0:00:41.8]} 40... Be6 {[%clk 0:00:09.8]} 41. Qf8+ {[%clk 0:00:35.7]} 41... Kh7
{[%clk 0:00:07.6]} 42. Rd3 {[%clk 0:00:33.9]} 42... Qb4 {[%clk 0:00:06.4]} 43.
Rc1 {[%clk 0:00:32.8]} 43... c4 {[%clk 0:00:06.5]} 44. Qxb4 {[%clk 0:00:29.6]}
44... Rxb4 {[%clk 0:00:08.4]} 45. Rd4 {[%clk 0:00:31.1]} 45... Rc5 {[%clk
0:00:07.1]} 46. f4 {[%clk 0:00:31.7]} 46... g6 {[%clk 0:00:06]} 47. Rc3 {[%clk
0:00:32.5]} 47... Rb3 {[%clk 0:00:05.9]} 48. Rc1 {[%clk 0:00:26.4]} 48... c3
{[%clk 0:00:07.3]} 49. Bd3 {[%clk 0:00:27.5]} 49... Rb2 {[%clk 0:00:08.2]} 50.
Bc2 {[%clk 0:00:25.6]} 50... Kg7 {[%clk 0:00:08.7]} 51. Rd6 {[%clk 0:00:19.4]}
51... Kf7 {[%clk 0:00:08.5]} 52. e5 {[%clk 0:00:18.9]} 52... Ke7 {[%clk
0:00:08.1]} 53. Bxg6 {[%clk 0:00:19.4]} 53... c2 {[%clk 0:00:07.2]} 54. Kh2
{[%clk 0:00:20.7]} 54... Bb3 {[%clk 0:00:05.4]} 55. Rd2 {[%clk 0:00:18.5]} 55...
Ba4 {[%clk 0:00:03.6]} 56. Kg3 {[%clk 0:00:16.8]} 56... Ke6 {[%clk 0:00:04.3]}
57. Kg4 {[%clk 0:00:17.8]} 57... Rc4 {[%clk 0:00:04.6]} 58. Bf5+ {[%clk
0:00:18.9]} 58... Ke7 {[%clk 0:00:05.8]} 59. g3 {[%clk 0:00:20.4]} 59... Rc3
{[%clk 0:00:06.8]} 60. Kh4 {[%clk 0:00:20.8]} 60... Kf7 {[%clk 0:00:06.6]} 61.
Kg4 {[%clk 0:00:20.1]} 61... Kg7 {[%clk 0:00:07.4]} 62. e6 {[%clk 0:00:21.4]}
62... Kf6 {[%clk 0:00:08.5]} 63. h4 {[%clk 0:00:22]} 63... h5+ {[%clk
0:00:09.6]} 64. Kxh5 {[%clk 0:00:23.3]} 64... Kxf5 {[%clk 0:00:11.3]} 65. e7
{[%clk 0:00:24.4]} 65... Be8+ {[%clk 0:00:12.2]} 66. Kh6 {[%clk 0:00:25.2]}
66... Kf6 {[%clk 0:00:13.2]} 67. Re2 {[%clk 0:00:24.8]} 67... Kf7 {[%clk
0:00:12.6]} 68. g4 {[%clk 0:00:26]} 68... Rb6+ {[%clk 0:00:11.6]} 69. Kg5 {[%clk
0:00:27.3]} 69... Rc7 {[%clk 0:00:10.2]} 70. f5 {[%clk 0:00:28.6]} 70... Ba4
{[%clk 0:00:11]} 71. Re4 {[%clk 0:00:19.7]} 71... Rb1 {[%clk 0:00:10.3]} 72.
Ree1 {[%clk 0:00:12.8]} 72... Rxc1 {[%clk 0:00:11.3]} 73. Rxc1 {[%clk
0:00:14.7]} 73... Rxe7 {[%clk 0:00:11.4]} 74. h5 {[%clk 0:00:09.3]} 74... Rd7
{[%clk 0:00:12.6]} 75. h6 {[%clk 0:00:10.7]} 75... Rd1 {[%clk 0:00:13.5]} 76. h7
{[%clk 0:00:12.2]} 76... Kg7 {[%clk 0:00:14.8]} 77. f6+ {[%clk 0:00:13.4]} 77...
Kxh7 {[%clk 0:00:16.1]} 0-1

[Event "*** Titled Tuesday 3|2 Blitz"]
[Site "Chess.com"]
[Date "2016.05.03"]
[Round "6"]
[White "motivated_bishop"]
[Black "oskariot"]
[Result "0-1"]
[WhiteElo "2297"]
[BlackElo "2428"]
[TimeControl "180+2"]
[EndTime "12:18:31 PDT"]
[Termination "oskariot won by resignation"]

1. d4 {[%clk 0:03:01.9]} 1... Nf6 {[%clk 0:03:01]} 2. c4 {[%clk 0:03:02.7]} 2...
c5 {[%clk 0:03:02.5]} 3. d5 {[%clk 0:03:03.3]} 3... b5 {[%clk 0:03:03.5]} 4.
cxb5 {[%clk 0:03:04.4]} 4... a6 {[%clk 0:03:05.1]} 5. bxa6 {[%clk 0:03:06.1]}
5... g6 {[%clk 0:03:06.8]} 6. Nc3 {[%clk 0:03:07.1]} 6... Bxa6 {[%clk
0:03:08.5]} 7. e4 {[%clk 0:03:03.8]} 7... Bxf1 {[%clk 0:03:10.4]} 8. Kxf1 {[%clk
0:03:03.7]} 8... d6 {[%clk 0:03:12.3]} 9. h3 {[%clk 0:03:05]} 9... Bg7 {[%clk
0:03:14]} 10. g3 {[%clk 0:03:06.4]} 10... O-O {[%clk 0:03:15.7]} 11. Kg2 {[%clk
0:03:07.5]} 11... Nbd7 {[%clk 0:03:17.3]} 12. Nf3 {[%clk 0:03:08.4]} 12... Qa5
{[%clk 0:03:17.8]} 13. Re1 {[%clk 0:03:05.8]} 13... Rfb8 {[%clk 0:03:18.1]} 14.
Re2 {[%clk 0:03:06.1]} 14... Ne8 {[%clk 0:03:18.4]} 15. Bg5 {[%clk 0:02:57.7]}
15... Rxb2 {[%clk 0:02:53.3]} 16. Rxb2 {[%clk 0:02:51.9]} 16... Bxc3 {[%clk
0:02:54.4]} 17. Rab1 {[%clk 0:02:43.2]} 17... Bxb2 {[%clk 0:02:55.1]} 18. Rxb2
{[%clk 0:02:44.3]} 18... f6 {[%clk 0:02:54.6]} 19. Bd2 {[%clk 0:02:41.1]} 19...
Qa4 {[%clk 0:02:55.6]} 20. Qe2 {[%clk 0:02:33.2]} 20... Qa6 {[%clk 0:02:53.3]}
21. Qd1 {[%clk 0:02:27.8]} 21... Qd3 {[%clk 0:02:49.4]} 22. Qe1 {[%clk 0:02:26]}
22... Ra4 {[%clk 0:02:21.8]} 23. Rb3 {[%clk 0:02:16.1]} 23... Qc2 {[%clk
0:01:44.7]} 24. Rb7 {[%clk 0:02:08.9]} 24... Rxe4 {[%clk 0:01:44.7]} 25. Qf1
{[%clk 0:02:02.9]} 25... Ne5 {[%clk 0:01:26.3]} 26. Qb5 {[%clk 0:01:36]} 26...
Kf7 {[%clk 0:01:23.1]} 27. Rb8 {[%clk 0:01:06.8]} 27... Qa4 {[%clk 0:01:23.5]}
28. Nxe5+ {[%clk 0:01:01.4]} 28... fxe5 {[%clk 0:00:54.6]} 29. Qd3 {[%clk
0:01:01.1]} 29... Qd4 {[%clk 0:00:49]} 30. Qf3+ {[%clk 0:00:54.1]} 30... Nf6
{[%clk 0:00:49.6]} 31. Bh6 {[%clk 0:00:51.8]} 31... Qxd5 {[%clk 0:00:43.5]} 32.
Rf8+ {[%clk 0:00:50.7]} 32... Ke6 {[%clk 0:00:44.5]} 33. Kh2 {[%clk 0:00:45.4]}
33... Re1 {[%clk 0:00:39.1]} 34. Qxd5+ {[%clk 0:00:33.5]} 34... Kxd5 {[%clk
0:00:36.2]} 35. Bg5 {[%clk 0:00:33.5]} 35... Re2 {[%clk 0:00:28.3]} 36. Kg2
{[%clk 0:00:29.9]} 36... Ke6 {[%clk 0:00:27.9]} 37. a4 {[%clk 0:00:27.9]} 37...
Ra2 {[%clk 0:00:25.5]} 38. Ra8 {[%clk 0:00:25]} 38... c4 {[%clk 0:00:26.8]} 39.
a5 {[%clk 0:00:24.3]} 39... c3 {[%clk 0:00:19.9]} 40. a6 {[%clk 0:00:25.3]}
40... d5 {[%clk 0:00:20.4]} 41. a7 {[%clk 0:00:25.2]} 41... d4 {[%clk
0:00:15.1]} 42. Bxf6 {[%clk 0:00:25.8]} 42... Kxf6 {[%clk 0:00:10.8]} 43. Rf8+
{[%clk 0:00:25.7]} 43... Ke6 {[%clk 0:00:12.2]} 44. a8=Q {[%clk 0:00:26.6]}
44... Rxa8 {[%clk 0:00:12.9]} 45. Rxa8 {[%clk 0:00:27.4]} 45... c2 {[%clk
0:00:12.3]} 46. Rc8 {[%clk 0:00:21.1]} 46... d3 {[%clk 0:00:13.6]} 47. Rc3
{[%clk 0:00:18]} 47... d2 {[%clk 0:00:14.3]} 48. Rxc2 {[%clk 0:00:19.3]} 48...
d1=Q {[%clk 0:00:15.7]} 49. Rc6+ {[%clk 0:00:20.4]} 49... Kf5 {[%clk 0:00:15.9]}
50. Rc3 {[%clk 0:00:20.7]} 50... Qd5+ {[%clk 0:00:16.6]} 51. Kh2 {[%clk
0:00:19.6]} 51... e4 {[%clk 0:00:18]} 52. Re3 {[%clk 0:00:19.8]} 52... Qd4
{[%clk 0:00:18.7]} 53. Kg2 {[%clk 0:00:20.7]} 53... h5 {[%clk 0:00:19.9]} 54.
Re1 {[%clk 0:00:21.5]} 54... Qd2 {[%clk 0:00:21.1]} 55. Re3 {[%clk 0:00:22.4]}
55... Qc2 {[%clk 0:00:22.7]} 56. h4 {[%clk 0:00:23.5]} 56... e6 {[%clk
0:00:22.8]} 57. Re1 {[%clk 0:00:24.1]} 57... Qd2 {[%clk 0:00:19.5]} 58. Re3
{[%clk 0:00:24.9]} 58... Qd1 {[%clk 0:00:21]} 59. Rc3 {[%clk 0:00:23.4]} 59...
e5 {[%clk 0:00:21.2]} 60. Re3 {[%clk 0:00:21.8]} 60... Qc2 {[%clk 0:00:21.6]}
61. Re1 {[%clk 0:00:22.8]} 61... g5 {[%clk 0:00:21.7]} 62. hxg5 {[%clk
0:00:21.5]} 62... Kxg5 {[%clk 0:00:22.9]} 63. Re3 {[%clk 0:00:21.2]} 63... Kg4
{[%clk 0:00:20.8]} 64. Re1 {[%clk 0:00:19.3]} 64... h4 {[%clk 0:00:17.4]} 65.
gxh4 {[%clk 0:00:20.1]} 65... Kxh4 {[%clk 0:00:18.8]} 66. Re3 {[%clk 0:00:21.1]}
66... Kg4 {[%clk 0:00:20]} 67. Rg3+ {[%clk 0:00:21.9]} 67... Kf4 {[%clk
0:00:21.5]} 68. Re3 {[%clk 0:00:21]} 68... Qd1 {[%clk 0:00:22.6]} 69. Rg3 {[%clk
0:00:20.5]} 69... Qf3+ {[%clk 0:00:14.6]} 70. Rxf3+ {[%clk 0:00:19.6]} 70...
exf3+ {[%clk 0:00:16.5]} 71. Kh2 {[%clk 0:00:10]} 71... e4 {[%clk 0:00:13.7]}
72. Kg1 {[%clk 0:00:11]} 72... e3 {[%clk 0:00:09]} 73. fxe3+ {[%clk 0:00:11.8]}
73... Kxe3 {[%clk 0:00:10.1]} 74. Kf1 {[%clk 0:00:09.5]} 74... f2 {[%clk
0:00:11.3]} 75. Kg2 {[%clk 0:00:10.7]} 75... Ke2 {[%clk 0:00:12.7]} 76. Kg3
{[%clk 0:00:11.2]} 76... f1=Q {[%clk 0:00:14.6]} 77. Kg4 {[%clk 0:00:12.7]}
77... Qf6 {[%clk 0:00:16.5]} 0-1

[Event "*** Titled Tuesday 3|2 Blitz"]
[Site "Chess.com"]
[Date "2016.05.03"]
[Round "6"]
[White "simonachess"]
[Black "bugsbunny444"]
[Result "0-1"]
[WhiteElo "2130"]
[BlackElo "2377"]
[TimeControl "180+2"]
[EndTime "12:18:32 PDT"]
[Termination "bugsbunny444 won by checkmate"]

1. d4 {[%clk 0:02:44.3]} 1... e6 {[%clk 0:03:00.7]} 2. c4 {[%clk 0:02:44.7]}
2... b6 {[%clk 0:03:02.3]} 3. a3 {[%clk 0:02:45]} 3... Bb7 {[%clk 0:03:03.2]} 4.
Nc3 {[%clk 0:02:46.4]} 4... f5 {[%clk 0:03:04.3]} 5. d5 {[%clk 0:02:47.4]} 5...
Nf6 {[%clk 0:03:05.4]} 6. g3 {[%clk 0:02:48.3]} 6... Na6 {[%clk 0:03:04.8]} 7.
Bg2 {[%clk 0:02:49.3]} 7... Nc5 {[%clk 0:03:06.1]} 8. Nh3 {[%clk 0:02:50]} 8...
Bd6 {[%clk 0:03:06]} 9. O-O {[%clk 0:02:49.8]} 9... Be5 {[%clk 0:03:03.6]} 10.
Qc2 {[%clk 0:02:48.7]} 10... O-O {[%clk 0:03:03.9]} 11. Bf4 {[%clk 0:02:47.8]}
11... Bxf4 {[%clk 0:02:55.1]} 12. Nxf4 {[%clk 0:02:48.1]} 12... e5 {[%clk
0:02:52.2]} 13. Nd3 {[%clk 0:02:48.9]} 13... Nxd3 {[%clk 0:02:45]} 14. exd3
{[%clk 0:02:48]} 14... d6 {[%clk 0:02:26.3]} 15. Rae1 {[%clk 0:02:47.4]} 15...
f4 {[%clk 0:02:17.4]} 16. d4 {[%clk 0:02:45.6]} 16... Nd7 {[%clk 0:01:58.6]} 17.
Bh3 {[%clk 0:02:33.3]} 17... exd4 {[%clk 0:01:42.4]} 18. Nb5 {[%clk 0:02:22.9]}
18... d3 {[%clk 0:01:31.1]} 19. Qxd3 {[%clk 0:02:00]} 19... Ne5 {[%clk
0:01:32.3]} 20. Qc3 {[%clk 0:01:55.5]} 20... Bc8 {[%clk 0:01:29.3]} 21. Bg2
{[%clk 0:01:41.8]} 21... f3 {[%clk 0:01:11.8]} 22. Bh1 {[%clk 0:01:41.7]} 22...
Bh3 {[%clk 0:01:12.7]} 23. Rxe5 {[%clk 0:01:35.6]} 23... Bxf1 {[%clk 0:00:27]}
24. Re3 {[%clk 0:01:34.4]} 24... Be2 {[%clk 0:00:11.3]} 25. Nd4 {[%clk
0:01:32.5]} 25... Qf6 {[%clk 0:00:10.1]} 26. Re6 {[%clk 0:01:21.4]} 26... Qg5
{[%clk 0:00:10.4]} 27. Bxf3 {[%clk 0:01:03.5]} 27... Bxf3 {[%clk 0:00:05.4]} 28.
Nxf3 {[%clk 0:01:05.4]} 28... Qf5 {[%clk 0:00:05.3]} 29. Qe3 {[%clk 0:00:54.8]}
29... Qxf3 {[%clk 0:00:05.2]} 30. Qe1 {[%clk 0:00:53.3]} 30... Qf5 {[%clk
0:00:04.6]} 31. Re7 {[%clk 0:00:53.8]} 31... Rf7 {[%clk 0:00:04.5]} 32. Re3
{[%clk 0:00:54.3]} 32... Raf8 {[%clk 0:00:05]} 33. f4 {[%clk 0:00:55.6]} 33...
Qc2 {[%clk 0:00:05.6]} 34. b3 {[%clk 0:00:54.6]} 34... g5 {[%clk 0:00:06.3]} 35.
Rc3 {[%clk 0:00:45.2]} 35... Qf5 {[%clk 0:00:06.4]} 36. Rf3 {[%clk 0:00:46.3]}
36... Qg4 {[%clk 0:00:06.8]} 37. Kg2 {[%clk 0:00:45.8]} 37... gxf4 {[%clk
0:00:04.8]} 38. c5 {[%clk 0:00:31.6]} 38... bxc5 {[%clk 0:00:05.7]} 39. b4
{[%clk 0:00:33.1]} 39... cxb4 {[%clk 0:00:06.7]} 40. Qxb4 {[%clk 0:00:34.7]}
40... Qg5 {[%clk 0:00:06]} 41. Qd4 {[%clk 0:00:31.3]} 41... Qe5 {[%clk 0:00:06]}
42. Qxa7 {[%clk 0:00:32.3]} 42... fxg3 {[%clk 0:00:06.2]} 43. Rxg3+ {[%clk
0:00:33.7]} 43... Kh8 {[%clk 0:00:07.7]} 44. Qg1 {[%clk 0:00:31.7]} 44... Qxd5+
{[%clk 0:00:07.2]} 45. Kh3 {[%clk 0:00:32.5]} 45... Qh5+ {[%clk 0:00:05.5]} 46.
Kg2 {[%clk 0:00:33.2]} 46... Rf2+ {[%clk 0:00:06.1]} 47. Qxf2 {[%clk 0:00:34.4]}
47... Rxf2+ {[%clk 0:00:07]} 48. Kxf2 {[%clk 0:00:36.3]} 48... Qxh2+ {[%clk
0:00:07.9]} 49. Rg2 {[%clk 0:00:38.2]} 49... Qf4+ {[%clk 0:00:08.8]} 50. Ke2
{[%clk 0:00:39.5]} 50... Qe4+ {[%clk 0:00:09.6]} 51. Kf2 {[%clk 0:00:41.1]}
51... Qc2+ {[%clk 0:00:09.1]} 52. Kg1 {[%clk 0:00:39.2]} 52... Qc1+ {[%clk
0:00:10.2]} 53. Kh2 {[%clk 0:00:40.3]} 53... Qxa3 {[%clk 0:00:10.5]} 54. Rf2
{[%clk 0:00:42.2]} 54... d5 {[%clk 0:00:09]} 55. Rg2 {[%clk 0:00:41.8]} 55... h6
{[%clk 0:00:08.9]} 56. Re2 {[%clk 0:00:42.1]} 56... Qd6+ {[%clk 0:00:06.5]} 57.
Kg2 {[%clk 0:00:42.9]} 57... Kh7 {[%clk 0:00:07.8]} 58. Kf3 {[%clk 0:00:43.8]}
58... d4 {[%clk 0:00:08.6]} 59. Re4 {[%clk 0:00:45]} 59... d3 {[%clk 0:00:09.3]}
60. Re1 {[%clk 0:00:45]} 60... d2 {[%clk 0:00:09]} 61. Rd1 {[%clk 0:00:46.7]}
61... c5 {[%clk 0:00:09.5]} 62. Ke2 {[%clk 0:00:48.1]} 62... h5 {[%clk
0:00:07.2]} 63. Rxd2 {[%clk 0:00:49.4]} 63... Qxd2+ {[%clk 0:00:08.1]} 64. Kxd2
{[%clk 0:00:51.3]} 64... h4 {[%clk 0:00:08.6]} 65. Ke3 {[%clk 0:00:53.2]} 65...
c4 {[%clk 0:00:08.8]} 66. Kd4 {[%clk 0:00:54.7]} 66... h3 {[%clk 0:00:09.8]} 67.
Kxc4 {[%clk 0:00:56.6]} 67... h2 {[%clk 0:00:11.3]} 68. Kd4 {[%clk 0:00:58.5]}
68... h1=Q {[%clk 0:00:12.8]} 69. Ke5 {[%clk 0:01:00.4]} 69... Kg6 {[%clk
0:00:13.9]} 70. Kd6 {[%clk 0:01:02.3]} 70... Kf6 {[%clk 0:00:14.8]} 71. Kd7
{[%clk 0:01:03.3]} 71... Qd5+ {[%clk 0:00:15.1]} 72. Kc7 {[%clk 0:01:05.2]}
72... Qc5+ {[%clk 0:00:16.1]} 73. Kb7 {[%clk 0:01:06.6]} 73... Ke6 {[%clk
0:00:15.3]} 74. Ka6 {[%clk 0:01:08.1]} 74... Qb4 {[%clk 0:00:16]} 75. Ka7 {[%clk
0:01:09.5]} 75... Kd7 {[%clk 0:00:16.9]} 76. Ka8 {[%clk 0:01:11.4]} 76... Kc7
{[%clk 0:00:17.9]} 77. Ka7 {[%clk 0:00:02.8]} 77... Qb7# {[%clk 0:00:17]} 0-1